[Event "26th Womens ECCC 2022"]
[Site "Mayrhofen"]
[Date "2022.10.04"]
[Round "2.12"]
[White "Hunt, Harriet V"]
[Black "Maltsevskaya, Aleksandra"]
[Result "0-1"]
[ECO "C70"]
[WhiteElo "2359"]
[BlackElo "2389"]
[Annotator "TA"]
[PlyCount "102"]
[EventDate "2022.10.03"]
[EventType "team-tourn"]
[EventCountry "AUT"]
[SourceTitle "playchess.com"]
[Source "ChessBase"]
[SourceQuality "1"]
[TimeControl "40/5400+30:1800+30"]

{[%evp 9,102,18,39,33,32,39,37,27,33,25,42,37,29,31,41,31,35,35,38,50,90,50,62,0,16,18,51,31,22,14,16,25,21,-14,-14,-15,-7,-8,-16,-74,-72,-100,-100,-109,-100,-108,-108,-104,-102,-127,-122,-118,-113,-135,-130,-155,-135,-164,-146,-180,-38,-35,-37,-27,-38,-31,-41,-31,-12,-764,-757,-759,-748,-749,-719,-12830,-9969,-12832,-12832,-12833,-12835,-12842,-12842,-12843,-12843,-12843,-12843,-12845,-12845,-12847,-12847,-12847,-12847,-27999,-27999]} 1. e4 {[%emt 0:00:04]} e5 {[%emt 0:00:06]} 2. Nf3 {[%emt 0:00:11]} Nc6 {[%emt 0:00:09]} 3. Bb5 {[%emt 0:00:13]} a6 {[%emt 0:00:07]} 4. Ba4 {[%emt 0:00:13]} Bc5 {[%emt 0:00:08]} 5. c3 {[%emt 0:01:27]} Nge7 {[%emt 0:03:06]} 6. d4 {[%emt 0:01:30] C70: Ruy Lopez: 3...a6 4 Ba4, Norwegian and Delayed Schliemann.} exd4 {[%emt 0:01:00]} 7. cxd4 {[%emt 0:00:09]} Bb4+ {[%emt 0:00:26]} 8. Nc3 {[%emt 0:00:34] White is slightly better.} d5 {[%emt 0:00:46]} 9. O-O {[%emt 0:01:12]} dxe4 {[%emt 0:05:42]} 10. Nxe4 {[%emt 0:00:13]} O-O {[%emt 0:02:52]} 11. a3 {[%emt 0:15:13]} Bd6 {[%emt 0:01:10]} 12. h3 {[%emt 0:04:23]} Bf5 {[%emt 0:05:19]} 13. Re1 {[%emt 0:02:23] [#]} h6 $146 {[%emt 0:06:07] Prevents Bg5.} ({Predecessor:} 13... Bg6 14. Bg5 f6 15. Nxd6 Qxd6 16. Bh4 Bf7 17. Bg3 Qd7 18. Rc1 Rad8 19. b4 Nf5 {1-0 (80) Kiolbasa,O (2376)-Vaishali,R (2442) Chennai 2022}) 14. Bd2 {[%emt 0:15:04]} Qd7 {[%emt 0:09:20]} 15. Qc1 {[%emt 0:16:50][%cal Od2h6]} ({Much weaker is} 15. Nxd6 Qxd6 16. Bb3 Rad8 $11) 15... Bxh3 {[%emt 0:22:17] White must now prevent ...Qg4.} 16. Bxh6 {[%emt 0:04:01]} ({Worse is} 16. Nxd6 Qg4 17. Nh4 cxd6 $17) ({White should try} 16. Bxc6 $14 Nxc6 17. gxh3 (17. Nxd6 Qg4 $17)) 16... Qg4 {[%emt 0:04:58][%csl Gh3][%cal Rg4g2] Chess con chili.} 17. Qg5 {[%emt 0:02:29] White wants to mate with Nf6+.} Qxg2+ {[%emt 0:02:04]} 18. Qxg2 {[%emt 0:00:04]} Bxg2 {[%emt 0:00:06]} 19. Kxg2 {[%emt 0:01:01] Threatens to win with Bg5.} gxh6 {[%emt 0:00:07]} 20. Bxc6 {[%emt 0:07:50]} Nxc6 {[%emt 0:00:10]} 21. Rh1 {[%emt 0:04:31]} Kg7 {[%emt 0:02:25]} 22. Rag1 {[%emt 0:01:09] White threatens Kf1+ and mate.} Rh8 {[%emt 0:01:47]} 23. Kf1+ {[%emt 0:00:37]} Kf8 {[%emt 0:00:07]} 24. Rh4 {[%emt 0:02:20]} (24. Rg5 $11) 24... Rd8 $1 $17 {[%emt 0:02:54][%cal Oc6d4]} 25. Nc3 {[%emt 0:05:26] [#]} Be7 $1 {[%emt 0:01:39]} 26. Rf4 {[%emt 0:00:10]} Bg5 $1 {[%emt 0:00:52]} 27. Nxg5 {[%emt 0:02:01]} hxg5 {[%emt 0:00:06]} 28. Rxg5 {[%emt 0:00:12]} Nxd4 {[%emt 0:01:10] ...Ne6 is the strong threat.} 29. Rd5 {[%emt 0:03:36]} Rxd5 {[%emt 0:00:54]} 30. Nxd5 {[%emt 0:00:04][%mdl 4096] Endgame KRN-KRN} Ne6 {[%emt 0:00:07]} 31. Rb4 {[%emt 0:01:00]} b5 {[%emt 0:01:32]} 32. Kg2 {[%emt 0:02:54] Against Rh1} Rh5 {[%emt 0:01:57]} 33. Ne3 {[%emt 0:01:29]} Ke7 {[%emt 0:02:39]} 34. Re4 {[%emt 0:00:24]} f5 {[%emt 0:00:54]} ({Black should play} 34... Kd6 $19 {And now ...f5 would win.} 35. Rg4 a5) 35. Nd5+ $1 $15 {[%emt 0:02:08]} Kf7 {[%emt 0:00:19]} 36. Re5 {[%emt 0:00:27]} c6 {[%emt 0:00:56]} 37. Nb4 {[%emt 0:00:19][%csl LRa6,LRc6]} Kf6 {[%emt 0:19:33]} 38. Nxc6 {[%emt 0:01:47]} Nf4+ {[%emt 0:00:05]} (38... Rh7 $5 {[%cal Rh7c7]} 39. Re1 Nf4+ 40. Kf3 Nd3 $17) 39. Kg3 $2 {[%emt 0:02:19][%mdl 8192] [#] Loses the game.} (39. Kf3 $11) 39... Kg5 $1 $19 {[%emt 0:00:16][%csl Gf4][%cal Rh5h3]} 40. f3 {[%emt 0:01:54]} Rh3+ {[%emt 0:00:07]} 41. Kf2 {[%emt 0:30:07]} Nd3+ {[%emt 0:30:28]} 42. Ke3 {[%emt 0:00:11]} Nxe5 {[%emt 0:00:07]} 43. Nxe5 {[%emt 0:00:07] KR-KN} Rh2 {[%emt 0:02:18]} 44. Nd3 {[%emt 0:00:00]} f4+ {[%emt 0:00:00]} 45. Nxf4 {[%emt 0:00:00]} Rxb2 {[%emt 0:00:00]} 46. Ne6+ {[%emt 0:00:00]} Kf6 {[%emt 0:00:00]} 47. Nc5 {[%emt 0:00:00]} Ra2 {[%emt 0:00:00]} 48. a4 {[%emt 0:00:00]} bxa4 {[%emt 0:00:00]} 49. Kd4 {[%emt 0:00:00]} a3 {[%emt 0:00:00]} 50. Kc3 {[%emt 0:00:00]} Rb2 {[%emt 0:00:00]} 51. Nxa6 {[%emt 0:00:00]} Rb6 {[%emt 0:00:00] Weighted Error Value: White=0.64/Black=0.11 (very precise)} 0-1

[Event "26th Womens ECCC 2022"]
[Site "Mayrhofen"]
[Date "2022.10.04"]
[Round "2.13"]
[White "Buksa, Nataliya"]
[Black "Mammadzada, Gunay"]
[Result "1/2-1/2"]
[ECO "B22"]
[WhiteElo "2413"]
[BlackElo "2483"]
[Annotator "TA"]
[PlyCount "121"]
[EventDate "2022.10.03"]
[EventType "team-tourn"]
[EventCountry "AUT"]
[SourceTitle "playchess.com"]
[Source "ChessBase"]
[SourceQuality "1"]
[TimeControl "40/5400+30:1800+30"]

{[%evp 14,121,0,0,6,15,0,16,14,20,19,20,43,-17,-15,-13,31,21,20,13,22,-76,-80,-73,-81,-80,-89,-90,-91,-76,-83,-81,-68,-85,-71,-95,-103,-89,-91,-79,-29,-27,-22,-66,-56,-72,-56,-115,-110,-116,0,0,0,-81,-80,-80,-80,-85,-43,-43,-43,-47,-58,-54,-56,-77,-87,-72,-14,-14,-14,-14,-14,-14,-14,-14,-14,-14,-14,-16,-16,-16,-14,-16,-16,-130,-130,-130,-130,-130,-130,-130,-130,-130,-130,-130,-130,-130,-130,-130,-130,-130,-130,-130,-130,-130,-130,-130,-130,-130]} 1. e4 {[%emt 0:00:02][%cal Be2e4,Be4e5][%mdl 32]} c5 {[%emt 0:00:08]} 2. c3 {[%emt 0:00:05]} Nf6 {[%emt 0:00:37]} 3. e5 {[%emt 0:00:05]} Nd5 {[%emt 0:00:03]} 4. d4 {[%emt 0:00:24]} cxd4 {[%emt 0:00:31]} 5. Nf3 {[%emt 0:00:03]} d6 {[%emt 0:00:42]} 6. cxd4 {[%emt 0:00:08]} Nc6 {[%emt 0:00:04]} 7. Bc4 {[%emt 0:00:14]} dxe5 {[%emt 0:08:11]} 8. dxe5 {[%emt 0:00:36]} Be6 {[%emt 0:00:15][%cal Od5f4] B22: Sicilian: 2 c3.} 9. O-O {[%emt 0:01:33]} g6 {[%emt 0:07:00]} 10. Ng5 {[%emt 0:00:25]} Bg7 {[%emt 0:00:05] The position is equal.} 11. Nxe6 {[%emt 0:00:03]} fxe6 {[%emt 0:00:03]} 12. f4 {[%emt 0:00:05]} O-O {[%emt 0:10:52]} 13. Qe2 {[%emt 0:04:49]} (13. Nc3 $14) 13... Qb6+ {[%emt 0:00:50]} 14. Kh1 $1 {[%emt 0:00:04]} Rad8 {[%emt 0:06:34][%cal Og6g5]} 15. Nc3 {[%emt 0:27:33]} Nd4 {[%emt 0:09:17] Pair of Knights!} 16. Qe4 {[%emt 0:07:39][%cal Rc3d5]} Qc5 {[%emt 0:03:19] [#]} 17. Bxd5 $146 {[%emt 0:02:10]} (17. Bd3 $1 $11 {keeps the balance.}) ({Predecessor:} 17. Bd3 Nf5 18. Bd2 Nde3 19. Bxe3 Nxe3 20. Rf3 Nf5 21. Qe1 Bh6 22. Bxf5 Rxf5 23. Qh4 {1-0 (46) Pap,M (2507)-Jankovic,A (2586) Rethymno 2011}) 17... exd5 $17 {[%emt 0:00:05]} 18. Qd3 {[%emt 0:00:35] Hoping for Be3.} Qc4 $36 {[%emt 0:03:58][%mdl 2048] White is under strong pressure.} 19. Qxc4 {[%emt 0:08:12]} dxc4 {[%emt 0:00:05]} 20. Kg1 {[%emt 0:00:42]} b5 {[%emt 0:05:37][%cal Bb7b5,Bb5b4][%mdl 32]} 21. g3 {[%emt 0:02:37]} g5 {[%emt 0:07:53]} 22. Kg2 {[%emt 0:05:45]} b4 {[%emt 0:06:58]} 23. Ne4 {[%emt 0:00:06]} gxf4 {[%emt 0:02:18]} 24. Bxf4 {[%emt 0:00:58]} Ne6 {[%emt 0:00:29]} 25. Rf2 {[%emt 0:12:50]} Rd4 {[%emt 0:02:16]} 26. Re1 {[%emt 0:00:05]} Rf5 {[%emt 0:01:18]} (26... a6 $17) 27. Be3 $11 {[%emt 0:01:44][%csl LRd4,LRf5]} Rxf2+ {[%emt 0:01:01]} 28. Bxf2 {[%emt 0:02:57]} Rd7 {[%emt 0:01:30]} 29. Rc1 {[%emt 0:06:20]} Rc7 {[%emt 0:00:11]} 30. Nd2 {[%emt 0:00:07]} ({White should try} 30. Be1 $15) 30... c3 $17 {[%emt 0:02:25]} (30... Bxe5 $6 31. Rxc4 Bxb2 32. Rxc7 (32. Rxb4 Rc2 $11) 32... Nxc7 33. Bxa7 $11) 31. bxc3 {[%emt 0:00:04]} Rxc3 {[%emt 0:00:07]} (31... Bh6 $1 $17 {[%cal Rh6d2]} 32. Rc2 Rxc3) 32. Nb3 $11 {[%emt 0:06:21]} a5 {[%emt 0:03:18]} (32... Bxe5 33. Re1 Bd6 34. Rxe6 $14) 33. Rb1 {[%emt 0:01:15] [#]} (33. Rxc3 $1 $11 bxc3 34. Kf3) 33... a4 $1 $17 {[%emt 0:08:08]} ({Much worse is} 33... Bxe5 $6 34. Re1 a4 35. Na1 $11 (35. Rxe5 axb3 36. axb3 Kf7 $11)) (33... Rc2 $6 34. Nxa5 Bxe5 35. Kf1 $11) 34. Na5 {[%emt 0:02:49]} ({Don't blunder} 34. Nd4 $2 Nxd4 35. Bxd4 Rc4 $19) 34... Rc2 {[%emt 0:03:41]} 35. Rxb4 {[%emt 0:00:02]} Bxe5 {[%emt 0:00:18]} 36. Kf1 $1 {[%emt 0:01:53]} Rxa2 {[%emt 0:02:31] ...Bc3 is the strong threat.} 37. Re4 {[%emt 0:01:33]} Bc3 {[%emt 0:02:05]} 38. Rxe6 {[%emt 0:00:53] Black must now prevent Nc4.} Bxa5 {[%emt 0:00:20]} 39. Rxe7 $15 {[%emt 0:00:03][%mdl 4096] Endgame KRB-KRB} a3 {[%emt 0:00:50][%cal Oa2f2] And now ...Rxf2+! would win.} 40. Re4 {[%emt 0:02:46] [#]} Rc2 {[%emt 0:04:02]} (40... Rb2 $1 $17 41. Ra4 Bb4) 41. Ra4 $11 {[%emt 0:33:26][%csl LRa3,LRa5]} a2 {[%emt 0:30:11]} 42. Rxa5 {[%emt 0:00:00] KRB-KR} Rc1+ {[%emt 0:00:00]} 43. Kg2 {[%emt 0:00:00]} a1=Q {[%emt 0:00:00]} 44. Rxa1 {[%emt 0:00:00]} Rxa1 {[%emt 0:00:00] KR-KB} 45. Kf3 {[%emt 0:00:00]} Kf7 {[%emt 0:00:00]} 46. Be3 {[%emt 0:00:00]} Ra2 {[%emt 0:00:00]} 47. h4 {[%emt 0:00:00]} Rh2 {[%emt 0:00:00]} 48. Bf4 {[%emt 0:00:00]} h5 {[%emt 0:00:00]} 49. Bb8 {[%emt 0:00:00]} (49. g4 $1 $11 Rxh4 50. gxh5) 49... Rb2 $17 {[%emt 0:00:00] Black is better.} 50. Bc7 {[%emt 0:00:00]} Rb4 {[%emt 0:00:00] Prevents g4.} 51. Bd6 {[%emt 0:00:00]} Ra4 {[%emt 0:00:00]} 52. Bc7 {[%emt 0:00:00]} Ke6 {[%emt 0:00:00]} 53. Bb8 {[%emt 0:00:00]} Kf5 {[%emt 0:00:00]} 54. Bd6 {[%emt 0:00:00]} Rc4 {[%emt 0:00:00]} 55. Bb8 {[%emt 0:00:00]} Rc3+ {[%emt 0:00:00]} 56. Kg2 {[%emt 0:00:00]} Kg4 {[%emt 0:00:00]} 57. Bd6 {[%emt 0:00:00]} Rc2+ {[%emt 0:00:00]} 58. Kg1 {[%emt 0:00:00]} Kf3 {[%emt 0:00:00]} 59. Be5 {[%emt 0:00:00]} Re2 {[%emt 0:00:00]} 60. Bf4 {[%emt 0:00:00]} Re1+ {[%emt 0:00:00]} 61. Kh2 {[%emt 0:00:00] Weighted Error Value: White=0.13 (very precise) /Black=0.10 (very precise)} 1/2-1/2

[Event "26th Womens ECCC 2022"]
[Site "Mayrhofen"]
[Date "2022.10.04"]
[Round "2.14"]
[White "Fataliyeva, Ulviyya"]
[Black "Gaponenko, Inna"]
[Result "1-0"]
[ECO "B40"]
[WhiteElo "2422"]
[BlackElo "2348"]
[Annotator "TA"]
[PlyCount "57"]
[EventDate "2022.10.03"]
[EventType "team-tourn"]
[EventCountry "AUT"]
[SourceTitle "playchess.com"]
[Source "ChessBase"]
[SourceQuality "1"]
[TimeControl "40/5400+30:1800+30"]

{[%evp 15,57,0,3,-6,-1,-4,-13,-18,-16,-15,-18,-29,-12,-13,-6,-33,-28,-68,-69,-72,-73,-93,-100,-291,-291,-282,39,62,1864,1879,1570,1755,1683,1692,1607,1499,29990,29991,29991,29992,29992,29993,29993,29994]} 1. e4 {[%emt 0:00:03]} c5 {[%emt 0:00:09]} 2. Nf3 {[%emt 0:00:05]} e6 {[%emt 0:00:17]} 3. d4 {[%emt 0:00:16]} cxd4 {[%emt 0:00:07]} 4. Nxd4 {[%emt 0:00:05]} Nf6 {[%emt 0:00:08]} 5. Nc3 {[%emt 0:00:45]} Nc6 {[%emt 0:00:12]} 6. Nxc6 {[%emt 0:00:41]} bxc6 {[%emt 0:00:09]} 7. Bd3 {[%emt 0:00:20]} d5 {[%emt 0:01:58]} 8. O-O {[%emt 0:00:26]} Be7 {[%emt 0:01:38]} 9. a3 {[%emt 0:00:45] [#] B40: Sicilian: 2...e6, Unusual lines.} a5 $146 {[%emt 0:05:06]} ({Predecessor:} 9... O-O 10. Bf4 Qb6 11. b4 Ba6 12. Qe2 Bxd3 13. cxd3 a5 14. exd5 cxd5 15. Rab1 axb4 16. axb4 {1-0 (49) Droin,A (2289)-Rakotomaharo,F (2422) Europe Echecs INT 2020}) 10. Re1 {[%emt 0:04:22]} O-O {[%emt 0:13:19]} 11. Bf4 {[%emt 0:04:29] The position is equal.} Ba6 {[%emt 0:15:52]} 12. Qe2 {[%emt 0:06:43]} Qb6 {[%emt 0:15:09]} 13. Bg5 {[%emt 0:11:44] aiming for e5.} Rfe8 {[%emt 0:05:39]} (13... Qxb2 $2 14. Bxa6 Qxc3 15. e5 $16) 14. Na4 {[%emt 0:18:11]} Qb7 {[%emt 0:04:42]} 15. Bxf6 {[%emt 0:02:53]} Bxf6 {[%emt 0:10:30]} 16. c4 {[%emt 0:00:13]} Qb3 {[%emt 0:03:33][%csl LRa4,LRc4]} 17. e5 {[%emt 0:14:14]} Be7 {[%emt 0:00:49]} (17... dxc4 $2 18. Bc2 Qb5 19. exf6 gxf6 20. h4 $18) (17... Bxc4 18. Bxh7+ Kxh7 19. Qh5+ Kg8 20. exf6 $16) 18. Qf3 {[%emt 0:03:54][%cal Od3h7]} dxc4 {[%emt 0:06:44]} ({Much weaker is} 18... Qxa4 19. b3 Qxa3 20. Rxa3 Bxa3 21. Rd1 $11) 19. Bxh7+ {[%emt 0:08:42]} Kxh7 $19 {[%emt 0:02:17]} 20. Qxf7 {[%emt 0:02:37][%cal Oe1e3] Threatens to win with Re3!} Qxa4 $2 {[%emt 0:05:25]} (20... Qc2 $1 $19 {Strongly threatening ...Qf5.} 21. Qxe6 Qg6 22. Qh3+ Kg8) 21. Re3 $1 $40 {[%emt 0:00:10][%mdl 128] White wants to mate with Rh3+. White attacks.} Bg5 $2 {[%emt 0:00:44][%mdl 8192]} (21... c3 {gets mated.} 22. Rg3) (21... Qb3 $14) 22. Rh3+ $1 $18 {[%emt 0:00:03]} Bh6 {[%emt 0:00:03] [#]} 23. g4 $1 {[%emt 0:00:03][%cal Oh3h6,Bg2g4,Bg4g5,Bg5h6][%mdl 32] White threatens Rxh6+! and mate.} Kh8 {[%emt 0:00:14] [#]} 24. g5 $1 {[%emt 0:06:07][%mdl 64] Pin} Rf8 {[%emt 0:02:00]} 25. Qg6 {[%emt 0:00:40][%mdl 64] Pin} Rad8 {[%emt 0:05:34]} 26. gxh6 {[%emt 0:03:02][%csl Gh6][%cal Rg6g7] White mates.} Rd1+ {[%emt 0:00:04]} 27. Kg2 {[%emt 0:00:10][%csl Gh6][%cal Rg6g7,Bg1g2,Bg2f2,Bf2e1][%mdl 32]} Rxf2+ {[%emt 0:00:08]} 28. Kxf2 {[%emt 0:00:12][%csl Gh6][%cal Rg6g7]} Rd2+ {[%emt 0:00:03]} 29. Ke1 {[%emt 0:00:36] Weighted Error Value: White=0.16 (very precise) /Black=0.55} 1-0

[Event "26th Womens ECCC 2022"]
[Site "Mayrhofen"]
[Date "2022.10.04"]
[Round "2.15"]
[White "Doluhanova, Evgeniya"]
[Black "Balajayeva, Khanim"]
[Result "1/2-1/2"]
[ECO "C84"]
[WhiteElo "2264"]
[BlackElo "2384"]
[Annotator "TA"]
[PlyCount "68"]
[EventDate "2022.10.03"]
[EventType "team-tourn"]
[EventCountry "AUT"]
[SourceTitle "playchess.com"]
[Source "ChessBase"]
[SourceQuality "1"]
[TimeControl "40/5400+30:1800+30"]

{[%evp 13,68,21,16,4,19,1,14,0,0,-8,0,-16,-10,-47,-22,-35,-21,-32,-17,-54,-52,-69,-75,-54,-58,-66,0,0,0,0,0,0,0,0,0,0,0,0,0,0,0,0,0,0,0,-2,0,-10,-2,-13,-15,-10,0,-14,0,-14,0]} 1. e4 {[%emt 0:00:03]} e5 {[%emt 0:00:05]} 2. Nf3 {[%emt 0:00:06]} Nc6 {[%emt 0:00:02]} 3. Bb5 {[%emt 0:00:25][%cal Bf1b5,Bb5a4,Ba4b3][%mdl 32]} a6 {[%emt 0:00:07]} 4. Ba4 {[%emt 0:00:04]} Nf6 {[%emt 0:00:03]} 5. O-O {[%emt 0:00:15]} Be7 {[%emt 0:00:10]} 6. d3 {[%emt 0:02:14]} b5 {[%emt 0:00:43]} 7. Bb3 d6 {[%emt 0:00:46]} 8. Bd2 {[%emt 0:02:05] C84: Closed Ruy Lopez: Unusual White 6th moves.} O-O {[%emt 0:04:23]} 9. a4 {[%emt 0:00:47] [#]} Bg4 $146 {[%emt 0:05:18]} ({Predecessor:} 9... b4 10. a5 Rb8 11. Bg5 Rb5 12. Ba4 Rxa5 13. Nbd2 Nd4 14. Nc4 Rc5 15. Nfd2 d5 16. Bxf6 Bxf6 {0-1 (50) Martirosyan,H (2572)-Tang,A (2494) Chess.com INT 2018}) 10. c3 {Inhibits Nd4.} Na5 {[%emt 0:04:54]} 11. Bc2 {[%emt 0:03:02]} c5 12. axb5 {[%emt 0:02:59]} axb5 {[%emt 0:00:32]} 13. Na3 Qd7 14. h3 {[%emt 0:04:10]} Bh5 {[%emt 0:11:33]} 15. Qe2 {[%emt 0:01:17]} Rfb8 {[%emt 0:01:41]} 16. Qe3 {[%emt 0:15:28]} Nc6 {[%emt 0:17:31]} 17. Rfc1 {[%emt 0:10:40]} d5 {[%emt 0:10:07]} 18. exd5 {[%emt 0:10:15]} Nxd5 {[%emt 0:00:17]} ({Don't take} 18... Qxd5 19. Nxb5 Rxa1 20. Rxa1 $16) 19. Qe2 {[%emt 0:01:51]} ({Don't blunder} 19. Nxe5 $2 Qe6 20. Nxc6 Nxe3 21. Nxe7+ Qxe7 $19) 19... Bf6 {[%emt 0:03:58]} (19... Nf6 $15) 20. Nxe5 $1 $11 {[%emt 0:09:27] The position is equal.} Nxe5 {[%emt 0:03:29]} 21. Qxh5 {[%emt 0:00:48]} g6 {[%emt 0:01:09]} 22. Qd1 {[%emt 0:02:25]} b4 {[%emt 0:02:00]} 23. Nc4 {[%emt 0:06:39]} (23. cxb4 {keeps more tension.} Nxb4 24. Bc3 Qf5 25. Bxb4 cxb4 26. d4) 23... Rxa1 {[%emt 0:04:24]} 24. Rxa1 {[%emt 0:03:31]} bxc3 {[%emt 0:00:09]} 25. bxc3 {[%emt 0:09:44]} (25. Bxc3 {seems wilder.} Nxc3 26. bxc3 Nxc4 27. dxc4 Qe6 28. Qf3) 25... Nxc4 {[%emt 0:01:31]} 26. dxc4 {[%emt 0:00:48]} Nxc3 {[%emt 0:00:08]} 27. Bxc3 {[%emt 0:02:19] A strong pair of Bishops.} Qxd1+ {[%emt 0:00:08]} 28. Rxd1 {[%emt 0:02:48]} Bxc3 {[%emt 0:00:04][%mdl 4096] Endgame KRB-KRB} 29. Rb1 {[%emt 0:00:18]} Ra8 {[%emt 0:02:30]} 30. Bb3 {[%emt 0:03:21] Against Ra2} (30. Be4 $5 {[%cal Re4a8]} Ra2 31. f4 $11) 30... Rd8 {[%emt 0:01:41]} 31. Rd1 {[%emt 0:00:50]} Rb8 {[%emt 0:00:47]} 32. Rb1 {[%emt 0:00:23]} Rd8 {[%emt 0:03:57]} 33. Rd1 {[%emt 0:00:06]} Rb8 {[%emt 0:04:05]} 34. Rb1 {[%emt 0:00:06]} Rd8 {[%emt 0:00:17] Weighted Error Value: White=0.09 (flawless) /Black=0.09 (flawless)} 1/2-1/2

[Event "26th Womens ECCC 2022"]
[Site "Mayrhofen"]
[Date "2022.10.04"]
[Round "2.16"]
[White "Beydullayeva, Govhar"]
[Black "Tarleva, Diana"]
[Result "1-0"]
[ECO "A43"]
[WhiteElo "2356"]
[BlackElo "2175"]
[Annotator "TA"]
[PlyCount "55"]
[EventDate "2022.10.03"]
[EventType "team-tourn"]
[EventCountry "AUT"]
[SourceTitle "playchess.com"]
[Source "ChessBase"]
[SourceQuality "1"]
[TimeControl "40/5400+30:1800+30"]

{[%evp 9,55,39,61,20,25,33,29,33,22,0,0,0,19,17,57,47,61,60,46,51,46,47,66,52,388,370,603,640,600,520,619,195,197,0,68,0,818,483,796,440,419,235,243,238,217,229,29991,29992]} 1. d4 {[%emt 0:00:04]} c5 {[%emt 0:00:08]} 2. d5 {[%emt 0:00:35]} e6 {[%emt 0:00:09]} 3. e4 {[%emt 0:02:42]} exd5 {[%emt 0:00:16]} 4. exd5 {[%emt 0:00:06]} d6 {[%emt 0:00:06]} 5. Bd3 {[%emt 0:02:14]} Nf6 {[%emt 0:04:04]} 6. Nc3 {[%emt 0:07:26] A43: Schmid Benoni.} Be7 {[%emt 0:01:45]} 7. h3 {[%emt 0:00:17]} O-O {[%emt 0:00:56]} 8. Nf3 {[%emt 0:00:20] White has an edge.} Na6 {[%emt 0:00:02]} 9. O-O {[%emt 0:01:59]} (9. Bxa6 $5 bxa6 10. Nd2 $11) 9... Nc7 {[%emt 0:01:40]} 10. Re1 {[%emt 0:09:51] [#]} Rb8 $146 {[%emt 0:08:46]} ({Predecessor:} 10... b6 11. a4 Bb7 12. Bc4 a6 13. Bg5 h6 14. Bh4 Re8 15. Qd3 Nh5 16. Rxe7 Rxe7 17. Bxe7 Qxe7 {½-½ (39) Miladinovic,I (2535)-Kuzmin,G (2545) Agios Nikolaos 1995}) 11. a4 {[%emt 0:07:54]} Ncxd5 {[%emt 0:00:58]} (11... h6 {seems wilder.} 12. Bc4 Bf5 13. Bf4 Re8) 12. Nxd5 {[%emt 0:04:03]} Nxd5 {[%emt 0:00:10] [#]} 13. Bxh7+ $1 {[%emt 0:00:39]} Kxh7 {[%emt 0:00:10]} 14. Qxd5 {[%emt 0:00:02] Hoping for Qe4+.} Be6 {[%emt 0:01:03]} 15. Qh5+ {[%emt 0:02:35]} Kg8 {[%emt 0:00:03]} 16. Re4 {[%emt 0:10:07] White is more active.} Qb6 $2 {[%emt 0:22:25][%mdl 8192] [#]} (16... Qd7 $14) 17. Bg5 $1 $18 {[%emt 0:03:21]} Qxb2 $2 {[%emt 0:01:15] [#]} (17... d5) 18. Bxe7 $1 {[%emt 0:16:18][%cal Of3g5]} Qxa1+ {[%emt 0:02:10] [#]} 19. Kh2 $1 {[%emt 0:00:45] Ng5 would kill now.} g6 {[%emt 0:05:54]} 20. Qg5 $40 {[%emt 0:01:54][%mdl 128] White goes for the king.} (20. Qh4 {Threatening mate with Bf6.} Bd5 21. Ng5) 20... Bf5 {[%emt 0:08:20] Strongly threatening ...f6.} 21. Re1 $2 {[%emt 0:11:17]} ({Better is} 21. Rh4 $18 {White wants to mate with Bf6.} f6 22. Qh6) 21... Qh8 {[%emt 0:11:26]} (21... Qxa4 22. Bf6 Kh7 23. g4) ({Black should play} 21... Qg7 $1 $11) 22. g4 {[%emt 0:04:58]} (22. Bxd6 $14 b6 23. Bxb8 Rxb8 24. Re7 (24. Qe7 Ra8 $11)) 22... Qc3 $2 {[%emt 0:12:23][%mdl 8192]} (22... Bxc2 $11 23. Bxd6 Qc3) 23. Re3 {[%emt 0:03:24]} f6 {[%emt 0:00:32]} (23... Qxc2 $142 24. Qh4 g5 25. Nxg5 Bh7) 24. Qh4 {[%emt 0:02:21]} (24. gxf5 fxg5 25. Rxc3 Rxf5 $16) 24... g5 {[%emt 0:00:01] Threatens to win with ...Qxe3.} 25. Qg3 {[%emt 0:00:43] The board is on fire.} ({Less strong is} 25. gxf5 gxh4 26. Rxc3 Rfe8 $16) (25. Rxc3 $142 {Intending Nxg5 and mate.} gxh4 26. Bxf8 (26. gxf5 Rfe8 $18) (26. Bxd6 Be4 $16) 26... Kxf8 27. gxf5) 25... Qxc2 {[%emt 0:00:21] ...Bd7 is the strong threat.} 26. Bxf8 {[%emt 0:00:34]} Rxf8 {[%emt 0:06:42]} 27. gxf5 {[%emt 0:00:04]} Rf7 $2 {[%emt 0:07:08] [#]} (27... Qxf5 $18 28. Qxd6 Qf4+ 29. Qxf4 gxf4) 28. Nxg5 $1 {[%emt 0:03:23][%mdl 512] Weighted Error Value: White=0.95/Black=0.76} 1-0